{"text_format":"1","workbook":"xlsx","n_sheets":4,"sheets":["фрукты","крупы","итоги","данные"],"not_rendered":{"charts":0,"images":0,"macros":1,"external_links":0,"defined_names":2,"comments":0,"pivot_tables":0},"unopened":[],"bounds":{"document_bytes":16777216,"sheet_cells":100000,"rows_first":2000,"rows_last":500,"rows_between":2000,"halvings":0,"cell_chars":16384,"cell_head_chars":4096},"cells_cut":0,"cells_raw":0,"read":"whole","date_system":"1900"}

{"sheet":"фрукты","index":0,"n_rows":3,"n_cols":7,"rows_kept":3,"cut":false,"hidden":false,"merged":[]}
[]
[]
["№ п/п","Фамилия отгрузившего товар","Наименование","Количество","Цена","Дата поставки","Примечание"]

{"sheet":"крупы","index":1,"n_rows":3,"n_cols":7,"rows_kept":3,"cut":false,"hidden":false,"merged":[]}
[]
[]
["№ п/п","Фамилия отгрузившего товар","Наименование","Количество","Цена","Дата поставки","Примечание"]

{"sheet":"итоги","index":2,"n_rows":37,"n_cols":13,"rows_kept":37,"cut":false,"hidden":false,"merged":[[3,1,3,12],[3,0,4,0],[21,0,22,0],[21,1,21,12]]}
[]
[]
["Сведения о крупах"]
["наименование"]
[null,"январь","февраль","март","апрель","май","июнь","июль","август","сентябрь","октябрь","ноябрь","декабрь"]
[{"$f":"данные!A2","v":"гречка"}]
[{"$f":"данные!A3","v":"рис"}]
[{"$f":"данные!A4","v":"пшено"}]
[{"$f":"данные!A5","v":"манка"}]
[{"$f":"данные!A6","v":"Геркулес"}]
[{"$f":"данные!A7","v":0}]
[{"$f":"данные!A8","v":0}]
[{"$f":"данные!A9","v":0}]
[{"$f":"данные!A10","v":0}]
[{"$f":"данные!A11","v":0}]
[{"$f":"данные!A12","v":0}]
[{"$f":"данные!A13","v":0}]
[{"$f":"данные!A14","v":0}]
[{"$f":"данные!A15","v":0}]
[]
["сведения о фруктах"]
["наименование"]
[null,"январь","февраль","март","апрель","май","июнь","июль","август","сентябрь","октябрь","ноябрь","декабрь"]
[{"$f":"данные!B2","v":"бананы"}]
[{"$f":"данные!B3","v":"апельсины"}]
[{"$f":"данные!B4","v":"мандарины"}]
[{"$f":"данные!B5","v":"Дыня"}]
[{"$f":"данные!B6","v":0}]
[{"$f":"данные!B7","v":0}]
[{"$f":"данные!B8","v":0}]
[{"$f":"данные!B9","v":0}]
[{"$f":"данные!B10","v":0}]
[{"$f":"данные!B11","v":0}]
[{"$f":"данные!B12","v":0}]
[{"$f":"данные!B13","v":0}]
[{"$f":"данные!B14","v":0}]
[{"$f":"данные!B15","v":0}]

{"sheet":"данные","index":3,"n_rows":6,"n_cols":2,"rows_kept":6,"cut":false,"hidden":false,"merged":[]}
["крупы","фрукты"]
["гречка","бананы"]
["рис","апельсины"]
["пшено","мандарины"]
["манка","Дыня"]
["Геркулес"]